fUSD/lending_fUSD_20260227
["ID","MTS","AMOUNT","RATE_DAILY","PERIOD"]
[406756033,1772159442942,-501.28875242,0.0001312,2]
[406756034,1772159442951,-600.0,0.0001312,2]
[406756035,1772159442961,-500.0,0.0001312,2]
[406756036,1772159442970,-600.0,0.0001312,2]
[406756037,1772159442979,-500.0,0.0001312,2]
[406756038,1772159442988,-500.0,0.0001312,2]
[406756039,1772159442998,-500.0,0.0001312,2]
[406756040,1772159443007,-500.0,0.0001312,2]
[406756041,1772159443016,-500.0,0.0001312,2]
[406756042,1772159443026,-500.0,0.0001312,2]
[406756043,1772159443035,-500.0,0.0001312,2]
[406756044,1772159443044,-500.0,0.0001312,2]
[406756045,1772159443053,-500.0,0.0001312,2]
[406756046,1772159443062,-500.0,0.0001312,2]
[406756047,1772159443071,-500.0,0.0001312,2]
[406756048,1772159443081,-500.0,0.0001312,2]
[406756049,1772159443090,-32465.5275536,0.00013156,2]
[406756050,1772159443099,-50139.17210381,0.00013174,2]
[406756051,1772159443108,-823.0,0.00013309,2]
[406756052,1772159443117,-3292.0,0.00013309,2]
[406756053,1772159443127,-330.9,0.00013349,2]
[406756054,1772159443136,-1057.29,0.00013564,2]
[406756055,1772159443145,-3000.0,0.00013568,2]
[406756056,1772159443155,-830.45295709,0.00013598,2]
[406756057,1772159443164,-296.61399423,0.000136,2]
[406756058,1772159443173,-736.0,0.00013667,2]
[406756059,1772159443183,-500.0,0.00013698,2]
[406756060,1772159443192,-500.0,0.00013698,2]
[406756061,1772159443202,-500.0,0.00013698,2]
[406756062,1772159443210,-500.0,0.00013698,2]
[406756063,1772159443220,-500.0,0.00013698,2]
[406756064,1772159443230,-517.91963663,0.00013698,2]
[406756065,1772159443239,-500.0,0.00013698,2]
[406756066,1772159443249,-500.0,0.00013698,2]
[406756067,1772159443259,-500.0,0.00013698,2]
[406756068,1772159443268,-500.0,0.00013698,2]
[406756069,1772159443278,-500.0,0.00013698,2]
[406756070,1772159443287,-500.0,0.00013698,2]
[406756071,1772159443296,-500.0,0.00013698,2]
[406756072,1772159443306,-500.0,0.00013698,2]
[406756073,1772159443316,-500.0,0.00013698,2]
[406756074,1772159443326,-500.0,0.00013698,2]
[406756075,1772159443335,-500.0,0.00013698,2]
[406756076,1772159443345,-500.0,0.00013698,2]
[406756077,1772159443355,-500.0,0.00013698,2]
[406756078,1772159443365,-500.0,0.00013698,2]
[406756079,1772159443375,-500.0,0.00013698,2]
[406756080,1772159443385,-500.0,0.00013698,2]
[406756081,1772159443394,-500.0,0.00013698,2]
[406756082,1772159443404,-500.0,0.00013698,2]
[406756084,1772159443413,-510.83,0.00013698,2]
[406756086,1772159443422,-510.83,0.00013698,2]
[406756087,1772159443432,-510.83,0.00013698,2]
[406756088,1772159443442,-510.83,0.00013698,2]
[406756089,1772159443451,-510.83,0.00013698,2]
[406756091,1772159443461,-510.83,0.00013698,2]
[406756093,1772159443471,-510.83,0.00013698,2]
[406756095,1772159443480,-510.83,0.00013698,2]
[406756097,1772159443490,-500.0,0.00013698,2]
[406756099,1772159443499,-500.0,0.00013698,2]
[406756101,1772159443509,-500.0,0.00013698,2]
[406756103,1772159443518,-500.0,0.00013698,2]
[406756105,1772159443528,-500.0,0.00013698,2]
[406756107,1772159443537,-500.0,0.00013698,2]
[406756109,1772159443546,-500.0,0.00013698,2]
[406756111,1772159443556,-500.0,0.00013698,2]
[406756113,1772159443566,-500.0,0.00013698,2]
[406756115,1772159443576,-500.0,0.00013698,2]
[406756117,1772159443585,-500.0,0.00013698,2]
[406756119,1772159443595,-381.07214064,0.00013698,2]
[406756120,1772159443605,-606.06,0.00013698,2]
[406756121,1772159443615,-606.06,0.00013698,2]
[406756122,1772159443625,-606.06,0.00013698,2]
[406756123,1772159443635,-606.06,0.00013698,2]
[406756124,1772159443644,-606.06,0.00013698,2]
[406756125,1772159443654,-606.06,0.00013698,2]
[406756126,1772159443664,-606.06,0.00013698,2]
[406756127,1772159443674,-606.06,0.00013698,2]
[406756128,1772159443865,-500.0,0.00013698,2]
[406756129,1772159443878,-500.0,0.00013698,2]
[406756130,1772159443887,-500.0,0.00013698,2]
[406756131,1772159443896,-500.0,0.00013698,2]
[406756132,1772159443905,-500.0,0.00013698,2]
[406756133,1772159443914,-500.0,0.00013698,2]
[406756134,1772159443924,-500.0,0.00013698,2]
[406756135,1772159443933,-500.0,0.00013698,2]
[406756136,1772159443942,-500.0,0.00013698,2]
[406756137,1772159443951,-500.0,0.00013698,2]
[406756138,1772159443960,-500.0,0.00013698,2]
[406756139,1772159443969,-500.0,0.00013698,2]
[406756140,1772159443979,-500.0,0.00013698,2]
[406756141,1772159443988,-500.0,0.00013698,2]
[406756142,1772159443997,-500.0,0.00013698,2]
[406756143,1772159444006,-500.0,0.00013698,2]
[406756144,1772159444015,-500.0,0.00013698,2]
[406756145,1772159444024,-500.0,0.00013698,2]
[406756146,1772159444033,-500.0,0.00013698,2]
[406756147,1772159444042,-500.0,0.00013698,2]
[406756148,1772159444051,-500.0,0.00013698,2]
[406756149,1772159444060,-500.0,0.00013698,2]
[406756150,1772159444069,-500.0,0.00013698,2]
[406756151,1772159444079,-500.0,0.00013698,2]
[406756152,1772159444088,-500.0,0.00013698,2]
[406756153,1772159444098,-500.0,0.00013698,2]
[406756154,1772159444107,-500.0,0.00013698,2]
[406756155,1772159444117,-858.75,0.00013698,2]
[406756156,1772159444126,-858.75,0.00013698,2]
[406756157,1772159444136,-858.75,0.00013698,2]
[406756158,1772159444146,-858.75,0.00013698,2]
[406756159,1772159444156,-858.75,0.00013698,2]
[406756160,1772159444165,-858.75,0.00013698,2]
[406756161,1772159444174,-858.75,0.00013698,2]
[406756162,1772159444183,-858.75,0.00013698,2]
[406756163,1772159444192,-858.75,0.00013698,2]
[406756164,1772159444202,-858.75,0.00013698,2]
[406756165,1772159444211,-858.75,0.00013698,2]
[406756166,1772159444220,-500.0,0.00013698,2]
[406756167,1772159444231,-500.0,0.00013698,2]
[406756168,1772159444240,-390.6323178,0.00013698,2]
[406756169,1772159444250,-713.82,0.00013699,2]
[406756170,1772159444260,-194.2,0.00013699,2]
[406756171,1772159444270,-161.83,0.00013699,2]
[406756172,1772159444280,-809.17,0.00013699,2]
[406756173,1772159444292,-16301.24,0.00013699,2]
[406756174,1772159444301,-32465.5275536,0.00013735,2]
[406756175,1772159444310,-15175.97359162,0.00013749,2]
[406756176,1772159444319,-50139.17210381,0.00013849,2]
[406756177,1772159444329,-1000.0,0.00013872,2]
[406756178,1772159444338,-330.9,0.00013929,2]
[406756179,1772159444347,-7655.49127373,0.00014073,2]
[406756180,1772159444356,-500.0,0.00014088,2]
[406756181,1772159444366,-858.75,0.00014088,2]
[406756182,1772159444375,-3500.0,0.00014116,2]
[406756183,1772159444385,-213.26045152,0.00014177,2]
[406756184,1772159444395,-432.15599791,0.00014194,2]
[406756185,1772159444404,-151.0,0.00014201,2]
[406756186,1772159444414,-151.0,0.00014201,2]
[406756187,1772159444423,-1480445.7518,0.00014204,2]
[406756188,1772159444433,-32465.5275536,0.00014313,2]
[406756189,1772159444443,-330.9,0.0001451,2]
[406756190,1772159444452,-500.0,0.00014521,2]
[406756191,1772159444462,-50139.17210381,0.00014524,2]
[406756192,1772159444471,-151.0,0.00014634,2]
[406756193,1772159444481,-151.0,0.00014634,2]
[406756194,1772159444491,-1152.0,0.0001464,2]
[406756195,1772159444501,-4609.0,0.0001464,2]
[406756196,1772159444511,-174.00015664,0.00014641,2]
[406756197,1772159444521,-160.0,0.00014641,2]
[406756198,1772159444530,-4000.0,0.00014664,2]
[406756199,1772159444540,-32465.5275536,0.00014891,2]
[406756200,1772159444550,-250.0,0.00015,2]
[406756201,1772159444559,-1252.0,0.00015027,2]
[406756202,1772159444569,-330.9,0.0001509,2]
[406756203,1772159444579,-504.0,0.0001512,2]
[406756204,1772159444588,-50139.17210381,0.000152,2]
[406756205,1772159444598,-4085.22400897,0.00015212,2]
[406756206,1772159444608,-1000.0,0.00015259,2]
[406756207,1772159444618,-1336.46,0.00015274,2]
[406756208,1772159444628,-6791.61,0.00015338,2]
[406756209,1772159444638,-711.09667239,0.0001541,2]
[406756210,1772159444648,-510.83,0.00015435,2]
[406756211,1772159444658,-500.0,0.00015435,2]
[406756212,1772159444669,-606.06,0.00015435,2]
[406756213,1772159444678,-500.0,0.00015435,2]
[406756214,1772159444688,-500.0,0.00015435,2]
[406756215,1772159444698,-32465.5275536,0.0001547,2]
[406756216,1772159444707,-330.9,0.0001567,2]
[406756217,1772159444717,-50139.17210381,0.00015875,2]
[406756218,1772159444726,-1336.46,0.00016037,2]
[406756219,1772159444736,-32465.5275536,0.00016048,2]
[406756220,1772159444746,-1613.0,0.00016103,2]
[406756221,1772159444756,-6453.0,0.00016103,2]
[406756222,1772159444765,-9999.99,0.00016116,2]
[406756223,1772159444775,-6788.031159,0.0001614,7]
[406756224,1772159444785,-5656.692634,0.00016212,7]
[406756225,1772159444795,-159.234181,0.00016212,7]
[406756226,1772159444808,-1480.533448,0.00016212,7]
[406756227,1772159444818,-816.0,0.000164,2]
[406756228,1772159444828,-160.0,0.000164,2]
[406756229,1772159444837,-2129.0,0.0001651,2]
[406756230,1772159444848,-50139.17210381,0.0001655,2]
[406756231,1772159444857,-32465.5275536,0.00016626,2]
[406756232,1772159444867,-1000.0,0.00016646,2]
[406756233,1772159444878,-332.257,0.00016712,2]
[406756234,1772159444887,-923.487,0.00016712,2]
[406756235,1772159444897,-845.0,0.0001672,2]
[406756236,1772159444907,-845.0,0.0001672,2]
[406756237,1772159444917,-160.0,0.0001672,2]
[406756238,1772159444927,-160.0,0.0001672,2]
[406756239,1772159444937,-500.0,0.00016763,2]
[406756240,1772159444947,-500.0,0.00016763,2]
[406756241,1772159444957,-500.0,0.00016763,2]
[406756242,1772159444966,-500.0,0.00016763,2]
[406756243,1772159444976,-858.75,0.00016763,2]
[406756244,1772159444986,-858.75,0.00016763,2]
[406756245,1772159444996,-2020.0,0.000168,2]
[406756246,1772159445006,-1336.46,0.00016801,2]
[406756247,1772159445015,-500.0,0.00016955,2]
[406756248,1772159445023,-858.75,0.00016955,2]
[406756249,1772159445033,-1233.777875,0.00016972,7]
[406756250,1772159445043,-200.0,0.00016983,2]
[406756251,1772159445052,-500.0,0.00016987,3]
[406756252,1772159445061,-500.0,0.00016999,2]
[406756253,1772159445071,-500.0,0.00016999,2]
[406756254,1772159445080,-300.0,0.00017,2]
[406756255,1772159445089,-1262.0,0.0001704,2]
[406756256,1772159445099,-160.0,0.0001704,2]
[406756257,1772159445108,-845.0,0.0001704,2]
[406756258,1772159445117,-195.0,0.0001704,2]
[406756259,1772159445126,-500.0,0.00017099,2]
[406756260,1772159445135,-500.0,0.00017099,2]
[406756261,1772159445145,-500.0,0.00017099,2]
[406756262,1772159445156,-500.0,0.00017099,2]
[406756263,1772159445165,-500.0,0.00017099,2]
[406756264,1772159445176,-500.0,0.00017099,2]
[406756265,1772159445185,-500.0,0.00017099,2]
[406756266,1772159445194,-500.0,0.00017099,2]
[406756267,1772159445204,-189.804718,0.00017099,2]
[406756268,1772159445213,-668.65185757,0.00017099,2]
[406756269,1772159445222,-274.32735207,0.00017099,2]
[406756270,1772159445231,-326.23592954,0.00017154,2]
[406756271,1772159445240,-30677.83564778,0.00017205,2]
[406756272,1772159445262,-1787.69190582,0.00017205,2]
[406756273,1772159445271,-504.0,0.00017213,3]
[406756274,1772159445281,-2278.01138858,0.00017225,2]
[406756275,1772159445300,-545.45457943,0.00017225,2]
[406756276,1772159445312,-878.96667,0.00017225,2]
[406756277,1772159445460,-3623.38190001,0.00017225,2]
[406756278,1772159445471,-725.14125703,0.00017225,2]
[406756279,1772159445495,-42088.21630876,0.00017225,2]
[406756281,1772159445505,-2845.0,0.0001736,2]
[406756283,1772159445515,-1336.46,0.00017565,2]
[406756284,1772159445525,-160.0,0.00017576,2]
[406756285,1772159445534,-845.0,0.0001768,2]
[406756286,1772159445544,-160.0,0.0001768,2]
[406756287,1772159445553,-500.0,0.00017698,2]
[406756288,1772159445563,-9035.0,0.00017714,2]
[406756289,1772159445573,-500.0,0.00017753,2]
[406756290,1772159445582,-519.32,0.00017758,2]
[406756291,1772159445592,-32465.5275536,0.00017783,2]
[406756292,1772159445602,-500.0,0.00017799,2]
[406756293,1772159445612,-353.12800196,0.00017799,2]
[406756294,1772159445621,-500.0,0.00017799,2]
[406756295,1772159445631,-500.0,0.00017799,2]
[406756296,1772159445641,-500.0,0.00017799,2]
[406756297,1772159445650,-858.75,0.00017799,2]
[406756298,1772159445660,-858.75,0.00017799,2]
[406756300,1772159445670,-858.75,0.00017799,2]
[406756301,1772159445682,-500.0,0.00017808,2]
[406756302,1772159445692,-150.0,0.00017808,2]
[406756303,1772159445702,-500.0,0.00017808,2]
[406756304,1772159445713,-800.0,0.00017808,2]
[406756305,1772159445722,-895.94335,0.0001782,2]
[406756306,1772159445731,-895.94336,0.0001782,2]
[406756307,1772159445740,-350.0,0.00017834,2]
[406756308,1772159445751,-7655.49127373,0.00017844,2]
[406756309,1772159445760,-500.0,0.00017862,2]
[406756310,1772159445770,-150.0,0.00017863,2]
[406756311,1772159445780,-14169.683597,0.00017883,2]
[406756312,1772159445789,-201063.9154764,0.00017883,2]
[406756313,1772159445811,-1686.56370365,0.00017883,2]
[406756314,1772159445822,-314354.10657905,0.00017883,2]
[406756315,1772159445831,-913.996712,0.00017883,2]
[406756316,1772159445841,-913.996712,0.00017883,2]
[406756317,1772159445850,-913.996712,0.00017883,2]
[406756318,1772159445860,-913.996712,0.00017883,2]
[406756319,1772159445869,-151.0,0.00017883,2]
[406756320,1772159445878,-11858.90222154,0.0001789,2]
[406756321,1772159445887,-32885.2992,0.000179,2]
[406756322,1772159445896,-1000.0,0.000179,2]
[406756323,1772159445905,-711.09667239,0.000179,2]
[406756324,1772159445914,-50139.17210381,0.000179,2]
[406756325,1772159445923,-2932.0,0.000179,2]
[406756326,1772159445932,-500.0,0.00017917,2]
[406756327,1772159445941,-150.0,0.00017918,2]
[406756328,1772159445950,-500.0,0.00017972,2]
[406756329,1772159445959,-150.0,0.00017972,2]
[406756330,1772159445968,-500.0,0.00017973,2]
[406756331,1772159445977,-514.28620298,0.00017973,2]
[406756332,1772159445986,-500.0,0.00017973,2]
[406756333,1772159445995,-500.0,0.00017973,2]
[406756334,1772159446005,-500.0,0.00017973,2]
[406756335,1772159446014,-500.0,0.00017973,2]
[406756336,1772159446023,-500.0,0.00017973,2]
[406756337,1772159446032,-162.19772571,0.00017973,2]
[406756338,1772159446041,-500.0,0.00017973,2]
[406756339,1772159446050,-500.0,0.00017973,2]
[406756340,1772159446059,-323.43612632,0.00017973,2]
[406756341,1772159446069,-500.0,0.00017973,2]
[406756342,1772159446078,-500.0,0.00017973,2]
[406756343,1772159446088,-164.12821239,0.00017973,2]
[406756344,1772159446097,-509.09257762,0.00017973,2]
[406756345,1772159446106,-500.0,0.00017973,2]
[406756346,1772159446116,-500.0,0.00017973,2]
[406756347,1772159446126,-500.0,0.00017973,2]
[406756348,1772159446180,-500.0,0.00017973,2]
[406756349,1772159446190,-304.53522203,0.00017973,2]
[406756351,1772159446199,-500.0,0.00017973,2]
[406756353,1772159446209,-500.0,0.00017973,2]
[406756355,1772159446220,-500.0,0.00017973,2]
[406756357,1772159446229,-503.84758055,0.00017973,2]
[406756359,1772159446239,-500.0,0.00017973,2]
[406756361,1772159446248,-500.0,0.00017973,2]
[406756363,1772159446257,-500.0,0.00017973,2]
[406756365,1772159446266,-500.0,0.00017973,2]
[406756367,1772159446275,-500.0,0.00017973,2]
[406756369,1772159446284,-250.29957449,0.00017973,2]
[406756371,1772159446295,-500.0,0.00017973,2]
[406756373,1772159446304,-500.0,0.00017973,2]
[406756374,1772159446313,-162.09183547,0.00017973,2]
[406756375,1772159446322,-162.91721637,0.00017973,2]
[406756376,1772159446331,-488.17085032,0.00017973,2]
[406756377,1772159446341,-500.0,0.00017973,2]
[406756378,1772159446349,-168.68792102,0.00017973,2]
[406756379,1772159446358,-500.0,0.00017973,2]
[406756380,1772159446367,-163.45926596,0.00017973,2]
[406756381,1772159446376,-504.20713995,0.00017973,2]
[406756382,1772159446386,-500.0,0.00017973,2]
[406756383,1772159446396,-500.0,0.00017973,2]
[406756384,1772159446405,-500.0,0.00017973,2]
[406756385,1772159446414,-500.0,0.00017973,2]
[406756386,1772159446425,-150.0,0.00017973,2]
[406756387,1772159446434,-500.0,0.00017973,2]
[406756388,1772159446445,-599.76937953,0.00017973,2]
[406756389,1772159446454,-500.0,0.00017973,2]
[406756390,1772159446463,-209.71418482,0.00017973,2]
[406756391,1772159446473,-166.96596734,0.00017973,2]
[406756392,1772159446482,-500.0,0.00017973,2]
[406756393,1772159446492,-187.56863755,0.00017973,2]
[406756394,1772159446503,-500.0,0.00017973,2]
[406756395,1772159446512,-170.45516022,0.00017973,2]
[406756396,1772159446522,-503.87280722,0.00017973,2]
[406756397,1772159446532,-5800.0,0.00017973,2]
[406756398,1772159446542,-5800.0,0.00017982,2]
[406756399,1772159446553,-432.15599791,0.0001799,2]
[406756400,1772159446562,-5800.0,0.0001799,2]
[406756401,1772159446571,-510.83,0.00017999,2]
[406756402,1772159446581,-510.83,0.00017999,2]
[406756403,1772159446591,-510.83,0.00017999,2]
[406756404,1772159446600,-510.83,0.00017999,2]
[406756405,1772159446610,-510.83,0.00017999,2]
[406756406,1772159446619,-510.83,0.00017999,2]
[406756407,1772159446629,-510.83,0.00017999,2]
[406756408,1772159446638,-500.0,0.00017999,2]
[406756409,1772159446648,-510.83,0.00017999,2]
[406756410,1772159446657,-500.0,0.00017999,2]
[406756411,1772159446666,-510.83,0.00017999,2]
[406756412,1772159446675,-500.0,0.00017999,2]
[406756413,1772159446685,-500.0,0.00017999,2]
[406756414,1772159446694,-500.0,0.00017999,2]
[406756415,1772159446703,-500.0,0.00017999,2]
[406756416,1772159446713,-500.0,0.00017999,2]
[406756417,1772159446722,-500.0,0.00017999,2]
[406756418,1772159446732,-500.0,0.00017999,2]
[406756419,1772159446742,-606.06,0.00017999,2]
[406756420,1772159446751,-606.06,0.00017999,2]
[406756421,1772159446760,-606.06,0.00017999,2]
[406756422,1772159446769,-606.06,0.00017999,2]
[406756423,1772159446779,-606.06,0.00017999,2]
[406756424,1772159446788,-606.06,0.00017999,2]
[406756425,1772159446798,-606.06,0.00017999,2]
[406756426,1772159446811,-606.06,0.00017999,2]
[406756427,1772159446821,-606.06,0.00017999,2]
[406756428,1772159446831,-500.0,0.00017999,2]
[406756429,1772159446842,-500.0,0.00017999,2]
[406756430,1772159446852,-500.0,0.00017999,2]
[406756431,1772159446862,-500.0,0.00017999,2]
[406756432,1772159446873,-500.0,0.00017999,2]
[406756433,1772159446882,-500.0,0.00017999,2]
[406756434,1772159446892,-500.0,0.00017999,2]
[406756435,1772159446901,-518.5920254,0.00017999,2]
[406756436,1772159446911,-500.0,0.00017999,2]
[406756437,1772159446920,-500.0,0.00017999,2]
[406756438,1772159446929,-500.0,0.00017999,2]
[406756439,1772159446938,-500.0,0.00017999,2]
[406756440,1772159446947,-500.0,0.00017999,2]
[406756441,1772159446957,-339.91488498,0.00017999,2]
[406756442,1772159446966,-500.0,0.00017999,2]
[406756443,1772159446975,-500.0,0.00017999,2]
[406756444,1772159446984,-151.95460719,0.00017999,2]
[406756445,1772159446993,-5800.0,0.00017999,2]
[406756446,1772159447002,-858.75,0.00017999,2]
[406756447,1772159447012,-858.75,0.00017999,2]
[406756448,1772159447021,-858.75,0.00017999,2]
[406756449,1772159447029,-858.75,0.00017999,2]
[406756450,1772159447038,-858.75,0.00017999,2]
[406756451,1772159447047,-858.8322427,0.00017999,2]
[406756452,1772159447057,-222.140607,0.00017999,2]
[406756453,1772159447066,-222.140607,0.00017999,2]
[406756454,1772159447075,-222.140607,0.00017999,2]
[406756455,1772159447084,-222.140607,0.00017999,2]
[406756456,1772159447096,-151.0,0.00017999,2]
[406756457,1772159447106,-151.0,0.00017999,2]
[406756458,1772159447115,-151.0,0.00017999,2]
[406756459,1772159447126,-156.704488,0.00017999,2]
[406756460,1772159447137,-154.181124,0.00017999,2]
[406756461,1772159447147,-189.28679953,0.00017999,2]
[406756462,1772159447157,-1615943.82890467,0.00018,2]
[406756463,1772159447166,-377829.84070182,0.00018,2]
[406756464,1772159447247,-3518.60633317,0.00018,2]
[406756465,1772159447265,-845.71741582,0.00018,2]
[406756466,1772159447277,-122711.16312946,0.00018,2]
[406756467,1772159447287,-17608.5046944,0.00018,3]
[406756468,1772159447297,-205.74949456,0.00018,2]
[406756469,1772159447306,-25000.0,0.00018,3]
[406756470,1772159447315,-1285.89772085,0.00018,2]
[406756471,1772159447325,-151.0,0.00018,2]
[406756472,1772159447336,-151.0,0.00018,2]
[406756473,1772159447345,-151.0,0.00018,2]
[406756474,1772159447354,-170.300736,0.00018,2]
[406756475,1772159447363,-170.300736,0.00018,2]
[406756476,1772159447372,-170.300736,0.00018,2]
[406756477,1772159447382,-170.300736,0.00018,2]
[406756478,1772159447391,-277.25086,0.00018,2]
[406756479,1772159447400,-277.25086,0.00018,2]
[406756480,1772159447409,-277.25086,0.00018,2]
[406756481,1772159447419,-277.25086,0.00018,2]
[406756482,1772159447429,-460.325004,0.00018,2]
[406756483,1772159447438,-460.325004,0.00018,2]
[406756484,1772159447448,-460.325004,0.00018,2]
[406756485,1772159447457,-460.325004,0.00018,2]
[406756486,1772159447466,-241.903311,0.00018,2]
[406756487,1772159447476,-241.903311,0.00018,2]
[406756488,1772159447485,-241.903311,0.00018,2]
[406756489,1772159447494,-241.903311,0.00018,2]
[406756490,1772159447504,-151.0,0.00018,2]
[406756491,1772159447513,-312.6172956,0.00018,3]
[406756492,1772159447523,-151.0,0.00018,2]
[406756493,1772159447532,-151.0,0.00018,2]
[406756494,1772159447542,-151.0,0.00018,2]
[406756495,1772159447551,-151.0,0.00018,2]
[406756496,1772159447561,-301.147368,0.00018,2]
[406756497,1772159447570,-222.140607,0.00018,2]
[406756498,1772159447579,-222.140607,0.00018,2]
[406756499,1772159447589,-222.140607,0.00018,2]
[406756500,1772159447599,-222.140607,0.00018,2]
[406756501,1772159447608,-151.0,0.00018,2]
[406756502,1772159447618,-151.0,0.00018,2]
[406756503,1772159447627,-151.0,0.00018,2]
[406756504,1772159447636,-895.94336,0.00018,2]
[406756505,1772159447645,-895.94336,0.00018,2]
[406756506,1772159447654,-895.94335,0.00018,2]
[406756507,1772159447663,-895.94336,0.00018,2]
[406756508,1772159447672,-913.996712,0.00018,2]
[406756509,1772159447682,-913.996712,0.00018,2]
[406756510,1772159447691,-913.996712,0.00018,2]
[406756511,1772159447700,-913.996712,0.00018,2]
[406756512,1772159447710,-151.0,0.00018,2]
[406756513,1772159447719,-500.0,0.00018027,2]
[406756514,1772159447728,-150.0,0.00018027,2]
[406756515,1772159447737,-500.0,0.00018082,2]
[406756516,1772159447747,-250.0,0.00018082,2]
[406756517,1772159447755,-350.0,0.0001813,2]
[406756518,1772159447764,-313.9792448,0.00018136,2]
[406756519,1772159447773,-3620.0,0.00018147,2]
[406756520,1772159447783,-261.85881362,0.0001821,2]
[406756521,1772159447792,-168.0,0.0001828,2]
[406756522,1772159447805,-1336.46,0.00018328,2]
[406756523,1772159447814,-168.0,0.00018391,2]
[406756524,1772159447822,-37.949084,0.00018411,2]
[406756525,1772159447840,-573.19510701,0.00018411,2]
[406756526,1772159447849,-168.0,0.00018499,2]
[406756527,1772159447859,-1000.0,0.00018521,2]
[406756528,1772159447867,-160.70123992,0.00018521,2]
[406756529,1772159447878,-1000.0,0.00018521,2]
[406756530,1772159447886,-1000.0,0.00018521,2]
[406756531,1772159447895,-1000.0,0.00018521,2]
[406756532,1772159447905,-1000.0,0.00018521,2]
[406756533,1772159447915,-903.96879303,0.00018521,2]
[406756534,1772159447923,-1000.69997296,0.00018521,2]
[406756535,1772159447933,-1011.35074257,0.00018521,2]
[406756536,1772159447942,-516.94272048,0.00018521,2]
[406756537,1772159448211,-755.23415522,0.00013772,2]
[406756538,1772159448222,-1206.36190644,0.00013772,2]
[406756539,1772159448231,-483.05727952,0.00018521,2]
[406756540,1772159448241,-1000.0,0.00018521,2]
[406756541,1772159448251,-1000.0,0.00018521,2]
[406756542,1772159448259,-437.40475609,0.00018521,2]
[406756543,1772159448269,-1000.0,0.00018521,2]
[406756544,1772159448279,-1000.0,0.00018521,2]
[406756545,1772159448288,-399.64210581,0.00018521,2]
[406756546,1772159448298,-507.75745941,0.00018521,2]
[406756547,1772159448307,-1016.53397435,0.00018521,2]
[406756548,1772159448316,-1000.0,0.00018521,2]
[406756549,1772159448326,-523.63999108,0.00018521,2]
[406756550,1772159448335,-1000.0,0.00018521,2]
[406756551,1772159448344,-1000.0,0.00018521,2]
[406756552,1772159448353,-1000.0,0.00018521,2]
[406756553,1772159448363,-1093.63023637,0.00018521,2]
[406756554,1772159448372,-1000.0,0.00018521,2]
[406756555,1772159448381,-403.62082282,0.00018521,2]
[406756556,1772159448391,-1000.0,0.00018521,2]
[406756557,1772159448400,-1000.0,0.00018521,2]
[406756558,1772159448409,-1031.00853115,0.00018521,2]
[406756559,1772159448419,-703.86664691,0.00018521,2]
[406756560,1772159448430,-150.21650816,0.00018521,2]
[406756561,1772159448439,-1030.45031097,0.00018521,2]
[406756562,1772159448448,-1000.0,0.00018521,2]
[406756563,1772159448458,-1000.0,0.00018521,2]
[406756564,1772159448467,-1000.0,0.00018521,2]